bitfinex/quotes_SOLUSD_20251031
["timestamp","ask_amount","ask_price","bid_price","bid_amount"]
[1761898479323,9.2228309,185.01,185.0,0.1]
[1761898480809,24.40971767,185.01,185.0,0.1]
[1761898481137,29.8148309,185.01,185.0,0.1]
[1761898481408,3.81771767,185.01,185.0,0.1]
[1761898482596,0.66,185.01,185.0,0.1]
[1761898482795,29.8148309,185.01,185.0,0.1]
[1761898483297,24.40971767,185.01,185.0,0.1]
[1761898483719,3.81771767,185.01,185.0,0.1]
[1761898483903,13.92654536,185.01,185.0,0.1]
[1761898484821,3.81771767,185.01,185.0,0.1]
[1761898485021,14.62879807,185.01,185.0,0.1]
[1761898486912,35.22079807,185.01,185.0,0.1]
[1761898488916,32.0630804,185.01,185.0,0.1]
[1761898489219,35.22079807,185.01,185.0,0.1]
[1761898489432,34.08792997,185.01,185.0,0.1]
[1761898493306,26.95873292,185.01,185.0,0.1]
[1761898493737,32.46595396,185.01,185.0,0.1]
[1761898495416,33.12595396,185.01,185.0,0.1]
[1761898495738,31.10110439,185.01,185.0,0.1]
[1761898495916,33.12595396,185.01,185.0,0.1]
[1761898498742,31.10110439,185.01,185.0,0.1]
[1761898499038,28.12407061,185.01,185.0,0.1]
[1761898499218,5.50722104,185.01,185.0,0.1]
[1761898499422,2.02484957,185.02,185.0,0.1]
[1761898500120,7.53207061,185.02,185.0,0.1]
[1761898500513,0.69,185.08,185.0,0.78]
[1761898500709,2.02484957,185.06,185.0,6.18539457]
[1761898500909,4.19128605,185.06,185.0,8.21024414]
[1761898501119,4.19128605,185.06,185.01,0.68]
[1761898501314,2.02484957,185.08,185.03,2.02484957]
[1761898501604,2.02484957,185.09,185.04,0.68]
[1761898502143,2.02484957,185.08,185.04,0.68]
[1761898502636,2.02484957,185.08,185.04,6.08404469]
[1761898502838,2.02484957,185.08,185.03,5.40450958]
[1761898503026,6.09287287,185.09,185.04,0.68]
[1761898503224,2.02484957,185.08,185.04,0.68]
[1761898504025,0.69,185.09,185.04,6.08417339]
[1761898504225,2.02484957,185.08,185.04,6.08417339]
[1761898504428,2.02484957,185.08,185.05,0.68]
[1761898504632,20.592,185.1,185.06,2.02484957]
[1761898504834,2.02484957,185.12,185.07,2.02484957]
[1761898505135,0.69,185.14,185.07,2.70484957]
[1761898505136,2.02484957,185.13,185.07,2.70484957]
[1761898505337,2.02484957,185.13,185.08,0.68]
[1761898505639,10.46882769,185.14,185.1,2.02484957]
[1761898505938,2.02484957,185.11,185.05,10.46882769]
[1761898506153,2.02484957,185.08,185.05,10.46882769]
[1761898506341,2.02484957,185.09,185.06,0.68]
[1761898506537,2.02484957,185.1,185.06,0.68]
[1761898507716,2.02484957,185.1,185.07,5.40336089]
[1761898508243,2.02484957,185.11,185.08,0.68]
[1761898508424,2.02484957,185.13,185.08,2.70484957]
[1761898508629,2.02484957,185.14,185.09,11.81367726]
[1761898508825,2.02484957,185.13,185.09,10.46882769]
[1761898509035,2.02484957,185.12,185.09,10.46882769]
[1761898509229,2.02484957,185.11,185.09,0.68]
[1761898509435,2.02484957,185.11,185.07,6.08336089]
[1761898509626,2.02484957,185.11,185.08,0.68]
[1761898510539,2.02484957,185.11,185.08,6.08290748]
[1761898510740,6.09156307,185.14,185.08,6.08290748]
[1761898510741,2.02484957,185.12,185.08,6.08290748]
[1761898510946,2.02484957,185.12,185.09,0.68]
[1761898511328,2.02484957,185.13,185.09,0.68]
[1761898511524,2.02484957,185.11,185.07,6.08334342]
[1761898511843,2.02484957,185.08,185.04,0.68]
[1761898512141,2.02484957,185.06,185.04,0.68]
[1761898512317,2.02484957,185.07,185.04,0.68]
[1761898512519,15.88168972,185.09,185.0,5.50516497]
[1761898512719,2.02484957,185.05,185.01,0.68]
[1761898513438,2.02484957,185.06,185.01,0.68]
[1761898513742,2.02484957,185.06,185.01,2.70484957]
[1761898513927,2.02484957,185.08,185.01,0.68]
[1761898514130,2.02484957,185.07,185.03,5.40452899]
[1761898514643,2.02484957,185.07,185.04,0.68]
[1761898515531,2.02484957,185.07,185.04,6.0841394]
[1761898516245,2.02484957,185.06,185.04,6.0841394]
[1761898517123,2.02484957,185.07,185.04,6.0941394]
[1761898517841,2.02484957,185.06,185.04,0.69]
[1761898518030,2.02484957,185.05,185.0,0.79]
[1761898518229,2.02484957,185.02,185.0,0.1]
[1761898518658,2.02484957,185.02,185.0,6.19536635]
[1761898518846,2.02484957,185.04,185.0,6.19536635]
[1761898519036,2.02484957,185.04,185.01,0.69]
[1761898519230,2.02484957,185.03,185.01,0.69]
[1761898520242,2.02484957,185.03,185.0,0.1]
[1761898520431,2.02484957,185.01,185.0,0.1]
[1761898520838,2.02484957,185.02,185.0,0.79]
[1761898521434,2.02484957,185.01,185.0,0.1]
[1761898521636,0.68,185.02,185.0,0.1]
[1761898521841,2.02484957,185.01,185.0,0.1]
[1761898523238,6.08423692,185.03,185.0,0.1]
[1761898523673,2.02484957,185.02,185.0,0.1]
[1761898524759,2.02484957,185.03,185.0,6.1954045]
[1761898525151,2.02484957,185.02,185.0,5.5054045]
[1761898525336,2.02484957,185.01,185.0,0.1]
[1761898525536,2.70484957,185.01,185.0,0.1]
[1761898525842,2.02484957,185.01,185.0,0.1]
[1761898526844,2.70484957,185.01,185.0,0.1]
[1761898527549,28.7019628,185.01,185.0,0.1]
[1761898527941,44.95551826,185.01,185.0,0.1]
[1761898529750,39.55040503,185.01,185.0,0.1]
[1761898530955,2.02484957,185.02,185.0,0.1]
[1761898531250,6.2162728,185.04,185.0,0.1]
[1761898531557,2.02484957,185.02,185.0,5.50535697]
[1761898531740,2.02484957,185.02,185.0,0.1]
[1761898533054,2.02484957,185.01,185.0,0.79]
[1761898533358,2.02484957,185.02,185.0,6.19532513]
[1761898533559,20.592,184.99,184.93,0.1]
[1761898533735,2.02484957,184.94,184.93,0.1]
[1761898534136,20.592,184.91,184.82,0.64106698]
[1761898534332,2.02484957,184.84,184.82,0.79]
[1761898534963,2.02484957,184.86,184.82,6.20046606]
[1761898535260,2.02484957,184.86,184.83,9.78882769]
[1761898535447,2.02484957,184.86,184.84,5.41008439]
[1761898535648,16.26236617,184.88,184.84,6.10008439]
[1761898535845,5.40511323,185.01,184.88,9.78882769]
[1761898536050,2.02484957,184.92,184.87,9.78882769]
[1761898536237,8.09939828,184.95,184.88,0.69]
[1761898536440,2.02484957,184.89,184.88,0.69]
[1761898536655,2.02484957,184.91,184.88,0.69]
[1761898537049,18.91851347,185.01,184.85,61.7]
[1761898537050,2.02484957,184.89,184.85,61.7]
[1761898537257,2.02484957,184.86,184.82,0.1]
[1761898537451,2.02484957,184.83,184.82,0.1]
[1761898537767,2.02484957,184.84,184.82,6.20066984]
[1761898538167,2.02484957,184.84,184.83,0.69]
[1761898539147,2.02484957,184.85,184.83,6.10026047]
[1761898540156,2.02484957,184.85,184.84,0.69]
[1761898540354,2.02484957,184.85,184.83,5.41026047]
[1761898540540,0.71,184.89,184.84,0.69]
[1761898540745,2.02484957,184.87,184.84,0.69]
[1761898541050,2.02484957,184.87,184.84,9.78882769]
[1761898541246,2.02484957,184.87,184.84,15.88881497]
[1761898541559,2.02484957,184.87,184.84,0.69]
[1761898541759,2.02484957,184.86,184.84,0.69]
[1761898542268,20.592,184.89,184.84,0.69]
[1761898542445,2.02484957,184.88,184.84,0.69]
[1761898543272,0.71,184.97,184.88,9.78882769]
[1761898543443,2.02484957,184.94,184.88,11.81367726]
[1761898543651,2.02484957,184.95,184.9,9.78882769]
[1761898543872,2.02484957,184.96,184.9,11.81367726]
[1761898544063,2.02484957,184.97,184.92,9.78882769]
[1761898544461,2.02484957,184.97,184.93,0.69]
[1761898544781,0.71,184.99,184.93,0.69]
[1761898544959,2.02484957,184.96,184.93,0.69]
[1761898545276,6.11571845,184.99,184.92,15.19657157]
[1761898545456,5.15626702,184.96,184.92,15.88657157]
[1761898545657,5.15626702,184.96,184.93,0.69]
[1761898545878,5.15626702,184.97,184.93,0.69]
[1761898546186,5.15626702,184.96,184.93,0.69]
[1761898546849,5.86626702,184.98,184.93,0.69]
[1761898547179,5.15626702,184.97,184.92,20.35283859]
[1761898547779,5.15626702,184.97,184.93,0.69]
[1761898548076,5.86626702,184.98,184.93,0.69]
[1761898548280,0.71,184.98,184.93,5.84626702]
[1761898548470,5.15626702,184.99,184.94,5.15626702]
[1761898548783,0.71,185.0,184.95,5.15626702]
[1761898548958,0.71,185.0,184.96,5.15626702]
[1761898549474,5.86626702,185.05,184.99,5.15626702]
[1761898549672,0.71,185.05,185.0,10.56167242]
[1761898549881,16.95915368,185.07,185.0,10.56167242]
[1761898550188,5.86626702,185.07,185.02,5.15626702]
[1761898550386,5.86626702,185.07,185.01,5.84626702]
[1761898550565,5.86626702,185.07,185.01,0.69]
[1761898550759,5.86626702,185.07,185.01,5.84626702]
[1761898551370,8.48169526,185.07,185.02,7.77169526]
[1761898551557,0.71,185.06,185.03,5.40452899]
[1761898551767,0.71,185.06,185.02,13.17650938]
[1761898552287,8.48169526,185.06,185.01,9.78882769]
[1761898552453,0.71,185.06,185.01,17.56052295]
[1761898552656,0.71,185.06,185.01,0.69]
[1761898552856,0.71,185.06,185.02,7.77169526]
[1761898553675,8.48169526,185.08,185.02,13.86634992]
[1761898554081,7.77169526,185.08,185.02,13.86634992]
[1761898554378,0.71,185.07,185.02,13.17634992]
[1761898554780,7.77169526,185.08,185.03,0.69]
[1761898554979,8.48169526,185.08,185.02,5.40465466]
[1761898555170,8.48169526,185.08,185.02,13.17634992]
[1761898555364,8.48169526,185.07,185.02,13.17634992]
[1761898555571,0.71,185.07,185.01,9.78882769]
[1761898555884,0.71,185.06,185.02,7.77169526]
[1761898556205,7.77169526,185.07,185.02,7.77169526]
[1761898556566,0.71,185.06,185.02,7.77169526]
[1761898556757,0.71,185.06,185.02,0.69]
[1761898556961,7.77169526,185.07,185.02,0.69]
[1761898557193,0.71,185.07,185.02,0.69]
[1761898557389,8.48169526,185.07,185.03,5.40452899]
[1761898557568,0.71,185.06,185.03,5.40452899]
[1761898559170,7.77169526,185.07,185.03,5.40452899]
[1761898559368,8.48169526,185.07,185.03,5.40452899]
[1761898559584,7.77169526,185.07,185.03,5.40452899]
[1761898559783,0.71,185.06,185.03,5.40452899]
[1761898559971,8.48169526,185.06,185.03,5.40452899]
[1761898560269,0.71,185.06,185.03,5.40452899]
[1761898560477,21.302,185.09,185.04,0.67]
[1761898560789,8.48169526,185.09,185.04,8.44169526]
[1761898561197,0.71,185.09,185.05,5.40394487]
[1761898561362,7.77169526,185.1,185.05,13.84564013]
[1761898561566,8.48169526,185.1,185.05,13.84564013]
[1761898561970,4.65068308,185.2,185.05,13.84564013]
[1761898561971,7.77169526,185.11,185.06,8.44169526]
[1761898562179,8.48169526,185.13,185.07,0.67]
[1761898562500,7.77169526,185.12,185.07,0.67]
[1761898562674,8.48169526,185.13,185.07,8.44169526]
[1761898562872,0.71,185.13,185.08,7.77169526]
[1761898563181,8.48169526,185.13,185.09,5.40277702]
[1761898563390,21.302,185.13,185.09,13.84447228]
[1761898563572,21.302,185.13,185.09,13.17447228]
[1761898563964,21.302,185.13,185.09,5.40277702]
[1761898564186,0.71,185.13,185.09,5.40277702]
[1761898564776,21.302,185.13,185.09,5.40277702]
[1761898565084,20.592,185.13,185.09,0.67]
[1761898565394,0.71,185.13,185.09,6.07256933]
[1761898565596,3.86806326,185.13,185.09,5.40256933]
[1761898565792,3.15806326,185.12,185.07,9.23124688]
[1761898566092,3.15806326,185.09,185.07,5.40318362]
[1761898566394,3.86806326,185.1,185.07,5.40318362]
[1761898566598,0.71,185.12,185.07,5.40318362]
[1761898566777,20.592,185.13,185.08,0.67]
[1761898566981,3.15806326,185.12,185.08,0.67]
[1761898567183,3.15806326,185.12,185.09,5.40277702]
[1761898567599,3.15806326,185.11,185.09,5.40277702]
[1761898567772,21.302,185.16,185.1,0.67]
[1761898567972,3.15806326,185.12,185.1,0.67]
[1761898568197,3.15806326,185.11,185.08,5.40302728]
[1761898568395,3.15806326,185.1,185.07,9.78882769]
[1761898568690,25.99280915,185.16,185.07,9.78882769]
[1761898568691,0.71,185.13,185.07,10.45882769]
[1761898568897,3.15806326,185.11,185.07,9.78882769]
[1761898569287,3.15806326,185.11,185.08,5.40306894]
[1761898569779,0.71,185.15,185.09,10.45882769]
[1761898569985,3.15806326,185.14,185.1,0.67]
[1761898570497,0.71,185.15,185.1,3.82806326]
[1761898570997,0.71,185.15,185.11,9.23025655]
[1761898571226,0.71,185.15,185.11,5.40219329]
[1761898571491,0.71,185.15,185.11,9.23025655]
[1761898572088,0.71,185.15,185.11,8.56025655]
[1761898572679,3.86806326,185.15,185.11,6.07219329]
[1761898572894,3.86806326,185.15,185.11,5.40219329]
[1761898573283,0.71,185.14,185.11,5.40219329]
[1761898573486,3.86806326,185.14,185.09,19.01941149]
[1761898573707,3.15806326,185.11,185.07,9.78882769]
[1761898573904,3.15806326,185.12,185.07,12.94689095]
[1761898574106,3.86806326,185.13,185.07,13.61689095]
[1761898574778,3.86806326,185.13,185.08,8.5611322]
[1761898574993,3.15806326,185.14,185.08,9.2311322]
[1761898575503,3.86806326,185.14,185.08,9.2311322]
[1761898575705,0.71,185.13,185.08,9.2311322]
[1761898575913,3.86806326,185.13,185.08,9.2311322]
[1761898576285,3.86806326,185.12,185.08,6.07306894]
[1761898576484,3.86806326,185.12,185.08,0.67]
[1761898576688,3.86806326,185.12,185.07,8.56135007]
[1761898577085,3.86806326,185.12,185.07,9.27135007]
[1761898578004,0.71,185.12,185.07,9.27135007]
[1761898578397,0.71,185.12,185.08,3.86806326]
[1761898578720,13.50126805,185.17,185.12,5.40190146]
[1761898578721,0.66,185.17,185.12,5.40190146]
[1761898578895,3.81806326,185.17,185.12,5.40190146]
[1761898579099,24.41006326,185.17,185.12,6.11190146]
[1761898579290,0.66,185.16,185.12,6.11190146]
[1761898579906,0.66,185.16,185.12,5.40190146]
[1761898581222,0.66,185.16,185.11,5.40219329]
[1761898581512,0.66,185.16,185.11,9.27025655]
[1761898582013,0.66,185.16,185.11,8.56025655]
[1761898582208,0.66,185.16,185.12,3.86806326]
[1761898582388,0.66,185.16,185.13,3.15806326]
[1761898582590,0.66,185.16,185.12,3.86806326]
[1761898582913,0.66,185.16,185.11,22.06573977]
[1761898583412,3.81806326,185.16,185.11,22.77573977]
[1761898584594,4.01806326,185.2,185.15,3.15806326]
[1761898585014,0.66,185.19,185.14,3.86806326]
[1761898586314,3.15806326,185.17,185.12,8.55996472]
[1761898586518,3.15806326,185.13,185.02,0.71]
[1761898586704,3.15806326,185.09,185.02,0.71]
[1761898586906,3.15806326,185.09,185.03,12.94689095]
[1761898587420,3.15806326,185.09,185.03,13.65689095]
[1761898587714,3.81806326,185.1,185.04,22.07289248]
[1761898587919,3.81806326,185.1,185.04,22.78289248]
[1761898589198,3.81806326,185.1,185.04,19.62482922]
[1761898589501,3.81806326,185.1,185.04,22.78289248]
[1761898589806,3.15806326,185.09,185.04,22.78289248]
[1761898590516,3.15806326,185.09,185.06,5.40365286]
[1761898591314,3.81806326,185.1,185.06,5.40365286]
[1761898592020,0.66,185.1,185.06,5.40365286]
[1761898592530,3.81806326,185.1,185.06,5.40365286]
[1761898592902,0.66,185.09,185.06,5.40365286]
[1761898594113,0.66,185.09,185.05,5.40394487]
[1761898594512,3.81806326,185.09,185.05,5.40394487]
[1761898595024,3.81806326,185.08,185.03,9.78882769]
[1761898595231,3.81806326,185.08,185.03,10.45882769]
[1761898595526,3.81806326,185.08,185.04,5.40423664]
[1761898596318,3.81806326,185.08,185.04,6.07423664]
[1761898596621,0.66,185.08,185.04,19.58482894]
[1761898596828,3.15806326,185.09,185.05,0.67]
[1761898597021,3.81806326,185.09,185.05,0.67]
[1761898597223,0.66,185.08,185.04,18.91482894]
[1761898597418,0.66,185.08,185.04,19.58482894]
[1761898597621,3.15806326,185.09,185.04,19.58482894]
[1761898597929,3.81806326,185.09,185.04,19.58482894]
[1761898598128,0.66,185.08,185.04,19.58482894]
[1761898598428,3.15806326,185.06,185.03,67.10449954]
[1761898598730,3.15806326,185.07,185.03,67.77449954]
[1761898599103,3.81806326,185.07,185.03,67.77449954]
[1761898599326,3.81806326,185.07,185.03,67.10449954]
[1761898599524,0.66,185.06,185.03,67.10449954]
[1761898601635,3.81806326,185.06,185.03,67.10449954]
[1761898602433,3.81806326,185.06,185.02,5.4048211]
[1761898602724,3.81806326,185.06,185.02,81.28687385]
[1761898603309,3.81806326,185.06,185.02,67.7748211]
[1761898603509,0.66,185.05,185.02,67.1048211]
[1761898603841,3.81806326,185.06,185.02,67.7748211]
[1761898604255,0.66,185.06,185.02,67.7748211]
[1761898604820,3.15806326,185.08,185.02,22.07493711]
[1761898605128,24.41006326,185.08,185.03,0.67]
[1761898605739,0.66,185.07,185.03,0.67]
[1761898606146,20.592,185.12,185.03,3.82806326]
[1761898606344,3.15806326,185.08,185.04,0.67]
[1761898606824,3.81806326,185.08,185.05,5.40394487]
[1761898607331,3.15806326,185.08,185.05,5.40394487]
[1761898607637,3.81806326,185.08,185.05,5.40394487]
[1761898607834,0.66,185.07,185.04,5.40423692]
[1761898608020,3.81806326,185.08,185.04,6.07423692]
[1761898608216,0.66,185.08,185.04,6.07423692]
[1761898608431,3.15806326,185.08,185.04,5.40423692]
[1761898608627,3.81806326,185.08,185.04,5.40423692]
[1761898608927,0.66,185.07,185.04,5.40423692]
[1761898610121,0.66,185.07,185.03,18.91585147]
[1761898610322,0.66,185.07,185.03,19.58585147]
[1761898610829,0.66,185.07,185.03,22.74391473]
[1761898611343,0.66,185.07,185.03,21.60827627]
[1761898612143,0.66,185.07,185.03,19.58585147]
[1761898612440,0.66,185.07,185.03,21.60827627]
[1761898614137,2.0224248,185.08,185.05,5.40394487]
[1761898614346,2.6824248,185.08,185.05,5.40394487]
[1761898614539,21.252,185.07,185.05,5.40394487]
[1761898614921,0.66,185.06,185.05,5.40394487]
[1761898615132,0.66,185.06,185.04,5.40423692]
[1761898616730,2.6824248,185.08,185.04,5.40423692]
[1761898616921,0.66,185.07,185.04,5.40423692]
[1761898617132,0.66,185.07,185.03,13.51132248]
[1761898617133,0.66,185.07,185.03,18.91585147]
[1761898619747,20.592,185.06,185.03,18.91585147]
[1761898620128,0.66,185.05,185.03,18.91585147]
[1761898620326,20.592,185.06,185.04,2.0224248]
[1761898620530,0.66,185.11,185.06,9.78882769]
[1761898620740,4.64883737,185.2,185.06,9.78882769]
[1761898620741,16.2429952,185.15,185.11,9.78882769]
[1761898621048,0.66,185.16,185.13,2.0224248]
[1761898621256,2.0224248,185.18,185.12,2.0224248]
[1761898621433,2.6824248,185.18,185.12,2.0224248]
[1761898621636,0.66,185.17,185.13,2.0224248]
[1761898621837,0.66,185.17,185.14,2.0224248]
[1761898622033,0.2,185.2,185.15,2.0224248]
[1761898622347,20.792,185.2,185.16,5.40073449]
[1761898622550,21.452,185.2,185.16,5.40073449]
[1761898622728,0.66,185.19,185.16,5.40073449]
[1761898622928,20.792,185.2,185.16,7.42315929]
[1761898623129,21.452,185.2,185.17,2.0224248]
[1761898623350,0.2,185.2,185.17,2.7424248]
[1761898623856,0.2,185.2,185.19,11.81125249]
[1761898624239,0.2,185.2,185.19,12.53125249]
[1761898624440,0.2,185.2,185.19,17.93111209]
[1761898625849,1e-08,185.2,185.19,17.93111209]
[1761898626046,1e-08,185.2,185.19,18.47109805]
[1761898626547,1e-08,185.2,185.19,5.3998596]
[1761898626731,2.68242481,185.2,185.14,9.78882769]
[1761898626938,2.68242481,185.2,185.14,2.7424248]
[1761898627252,2.68242481,185.2,185.14,2.0224248]
[1761898627642,2.68242481,185.2,185.16,9.78882769]
[1761898627837,23.27442481,185.2,185.16,9.78882769]
[1761898628043,23.27442481,185.2,185.17,5.40044283]
[1761898629041,2.0224248,185.18,185.14,5.40113524]
[1761898629239,2.0224248,185.16,185.14,5.40113524]
[1761898629430,2.6824248,185.15,185.12,5.40161462]
[1761898629954,0.66,185.14,185.12,5.40161462]
[1761898630656,0.66,185.14,185.11,18.90727825]
[1761898631532,0.66,185.14,185.11,20.92970305]
[1761898632556,2.6824248,185.17,185.11,21.64970305]
[1761898632855,0.66,185.17,185.12,2.0224248]
[1761898633155,0.66,185.16,185.12,2.0224248]
[1761898634057,0.66,185.16,185.13,5.40160967]
[1761898634538,22.6144248,185.18,185.13,7.42403447]
[1761898634730,0.66,185.17,185.13,20.92805866]
[1761898635437,0.66,185.17,185.14,2.0224248]
[1761898635852,0.66,185.17,185.13,20.92805866]
[1761898636051,0.66,185.17,185.14,2.0224248]
[1761898636440,0.66,185.17,185.15,2.0224248]
[1761898636640,2.02242481,185.2,185.15,2.0224248]
[1761898636847,0.68,185.19,185.15,2.0224248]
[1761898637045,0.68,185.19,185.14,11.81125249]
[1761898637857,0.68,185.19,185.14,12.53125249]
[1761898638232,0.68,185.19,185.15,20.92601647]
[1761898639229,0.68,185.19,185.15,21.64601647]
[1761898639435,0.68,185.19,185.16,2.0224248]
[1761898639635,0.68,185.19,185.17,2.0224248]
[1761898639835,1e-08,185.2,185.17,2.0224248]
[1761898640060,1e-08,185.2,185.18,2.0224248]
[1761898640264,1e-08,185.2,185.19,5.3998596]
[1761898640959,1e-08,185.2,185.19,7.4222844]
[1761898641658,1e-08,185.2,185.19,17.21111209]
[1761898642236,1e-08,185.2,185.19,9.78882769]
[1761898642450,0.68000001,185.2,185.18,5.40013434]
[1761898642850,0.68000001,185.2,185.18,7.42255914]
[1761898643968,1e-08,185.2,185.19,2.0224248]
[1761898644679,1e-08,185.2,185.19,7.4222844]
[1761898647443,1e-08,185.2,185.19,8.1422844]
[1761898647871,1e-08,185.2,185.19,7.4222844]
[1761898648058,1e-08,185.2,185.19,5.3998596]
[1761898648372,0.68000001,185.2,185.19,5.3998596]
[1761898648672,1e-08,185.2,185.19,5.3998596]
[1761898649564,0.71000001,185.2,185.18,5.4001512]
[1761898650652,2.0224248,185.19,185.18,5.4001512]
[1761898651053,0.71,185.19,185.18,5.4001512]
[1761898652246,2.7324248,185.19,185.15,67.10096848]
[1761898652465,2.0224248,185.16,185.12,5.40190146]
[1761898652667,2.0224248,185.15,185.12,5.40190146]
[1761898652869,2.0224248,185.14,185.12,5.40190146]
[1761898653054,2.0224248,185.16,185.12,5.40190146]
[1761898653259,2.7324248,185.18,185.13,2.6824248]
[1761898653461,2.7324248,185.18,185.13,2.0224248]
[1761898653653,0.71,185.17,185.13,2.0224248]
[1761898654151,21.302,185.17,185.13,2.0224248]
[1761898654468,23.3244248,185.17,185.14,5.40131792]
[1761898654667,0.71,185.16,185.14,5.40131792]
[1761898655450,2.7324248,185.16,185.14,5.40131792]
[1761898655652,2.7324248,185.16,185.13,5.40159823]
[1761898655853,0.71,185.15,185.13,5.40159823]
[1761898656466,16.2368414,185.2,185.14,10.44882769]
[1761898656675,16.2368414,185.2,185.14,72.14882769]
[1761898656964,0.71,185.19,185.15,9.78882769]
[1761898657170,0.71,185.19,185.17,2.0224248]
[1761898657468,1e-08,185.2,185.17,2.0224248]
[1761898657663,0.71000001,185.2,185.17,2.0224248]
[1761898658374,0.71000001,185.2,185.18,5.4001512]
[1761898658872,0.71000001,185.2,185.13,9.78882769]
[1761898658873,2.0224248,185.19,185.13,9.78882769]
[1761898659063,2.0224248,185.19,185.1,5.40248514]
[1761898659064,2.0224248,185.17,185.1,5.40248514]
[1761898659251,2.0224248,185.16,185.1,7.42490994]
[1761898659450,2.0224248,185.16,185.11,2.0224248]
[1761898659644,0.71,185.15,185.11,2.0224248]
[1761898660257,0.71,185.15,185.12,5.40190146]
[1761898661470,0.71,185.15,185.11,5.40219329]
[1761898662158,0.71,185.15,185.11,20.93010131]
[1761898662649,0.71,185.15,185.11,18.90767651]
[1761898662846,0.71,185.15,185.11,20.93010131]
[1761898663067,0.71,185.15,185.12,9.78882769]
[1761898663257,0.71,185.15,185.12,11.81125249]
[1761898663681,22.6144248,185.18,185.12,11.81125249]
[1761898663682,21.302,185.18,185.13,2.0224248]
[1761898663977,0.71,185.18,185.14,2.0224248]
[1761898665070,0.71,185.18,185.15,5.40102619]
[1761898666575,2.7324248,185.18,185.15,5.40102619]
[1761898666753,1e-08,185.2,185.15,5.40102619]
[1761898666956,0.71,185.19,185.15,5.40102619]
[1761898667158,0.71,185.19,185.15,2.0224248]
[1761898667458,2.7324248,185.19,185.14,18.90461272]
[1761898667866,0.71,185.18,185.14,18.90461272]
[1761898668258,0.71,185.18,185.15,2.0224248]
[1761898669175,0.71,185.18,185.16,5.40073449]
[1761898670976,2.73242481,185.2,185.16,5.40073449]
[1761898671174,1e-08,185.2,185.18,5.4001512]
[1761898671378,1e-08,185.2,185.18,7.422576]
[1761898671557,1e-08,185.2,185.18,8.082576]
[1761898671757,1e-08,185.2,185.19,2.6824248]
[1761898672063,1e-08,185.2,185.19,2.0224248]
[1761898672460,1e-08,185.2,185.18,8.082576]
[1761898672798,1e-08,185.2,185.18,7.422576]
[1761898673079,1e-08,185.2,185.18,8.082576]
[1761898673277,1e-08,185.2,185.18,6.0601512]
[1761898673451,1e-08,185.2,185.18,9.21484301]
[1761898674180,1e-08,185.2,185.18,8.55484301]
[1761898675687,1e-08,185.2,185.18,9.21484301]
[1761898676385,1e-08,185.2,185.18,6.0601512]
[1761898676572,1e-08,185.2,185.18,9.21484301]
[1761898676879,0.71,185.19,185.14,15.85014561]
[1761898677085,0.71,185.19,185.15,3.15469181]
[1761898677463,0.71,185.19,185.14,31.84813222]
[1761898677783,3.15469181,185.18,185.14,28.69344041]
[1761898678160,0.71,185.17,185.14,28.69344041]
[1761898678575,0.71,185.17,185.14,18.90461272]
[1761898679372,23.74669181,185.19,185.14,22.77930453]
[1761898679781,21.292,185.19,185.14,22.77930453]
[1761898679967,20.592,185.19,185.14,22.77930453]
[1761898680170,0.7,185.18,185.14,22.77930453]
[1761898680369,0.7,185.18,185.14,22.05930453]
[1761898681093,0.7,185.18,185.14,84.47930453]
[1761898681384,0.70000001,185.2,185.16,5.40073449]
[1761898681587,1e-08,185.2,185.16,18.90257073]
[1761898681763,1e-08,185.2,185.18,3.15469181]
[1761898681965,1e-08,185.2,185.18,65.57469181]
[1761898682166,1e-08,185.2,185.18,64.85469181]
[1761898682382,1e-08,185.2,185.18,65.57469181]
[1761898682585,1e-08,185.2,185.19,0.72]
[1761898683178,1e-08,185.2,185.19,6.1198596]
[1761898683986,1e-08,185.2,185.19,9.27455141]
[1761898684287,1e-08,185.2,185.19,6.1198596]
[1761898684666,1e-08,185.2,185.19,5.3998596]
[1761898685571,1e-08,185.2,185.19,6.1198596]
[1761898686890,1e-08,185.2,185.19,19.0633791]